fUST/lending_fUST_20241231
["ID","MTS","AMOUNT","RATE_DAILY","PERIOD"]
[347242872,1735615832998,-685.61,0.00019178,2]
[347242873,1735615833008,-500.0,0.00019178,2]
[347242874,1735615833017,-500.0,0.00019178,2]
[347242876,1735615833028,-500.0,0.00019178,2]
[347242878,1735615833038,-2234.8,0.00019178,2]
[347242879,1735615833048,-467.59208848,0.00019178,2]
[347242922,1735615838726,-383.42791152,0.00019178,2]
[347242924,1735615838736,-304.41769349,0.00019178,2]
[347242925,1735615840756,-201.71917204,0.00019178,2]
[347242938,1735615843887,-717.23313447,0.00019178,2]
[347242939,1735615843898,-19520.36,0.00019178,2]
[347242940,1735615843908,-500.0,0.00019178,2]
[347242941,1735615843917,-375.31089772,0.00019178,2]
[347242942,1735615843926,-500.0,0.00019178,2]
[347242943,1735615843935,-500.0,0.00019178,2]
[347242944,1735615843945,-500.0,0.00019178,2]
[347242945,1735615843954,-846.55,0.00019178,2]
[347242946,1735615843963,-631.61,0.00019178,2]
[347242947,1735615843973,-656.48,0.00019178,2]
[347242948,1735615843982,-578.9,0.00019178,2]
[347242949,1735615843991,-500.0,0.00019178,2]
[347242950,1735615844000,-2151.34,0.00019178,2]
[347242951,1735615844010,-500.0,0.00019178,2]
[347242952,1735615844019,-500.0,0.00019178,2]
[347242953,1735615844028,-500.0,0.00019178,2]
[347242954,1735615844039,-546.56848084,0.00019178,2]
[347242955,1735615844048,-868.48,0.00019178,2]
[347242956,1735615844057,-920.77,0.00019178,2]
[347242957,1735615844067,-6355.53,0.00019178,2]
[347242958,1735615844076,-1989.0,0.00019178,2]
[347242959,1735615844085,-500.0,0.00019178,2]
[347242960,1735615844094,-522.65,0.00019178,2]
[347242961,1735615844103,-500.0,0.00019178,2]
[347242962,1735615844112,-500.0,0.00019178,2]
[347242963,1735615844121,-720.08,0.00019178,2]
[347242964,1735615844131,-152.77,0.00019178,2]
[347242965,1735615844140,-168.51997,0.00019178,2]
[347242966,1735615844149,-500.0,0.00019452,3]
[347242967,1735615844158,-500.0,0.00019452,3]
[347242968,1735615844167,-500.0,0.00019452,3]
[347242969,1735615844266,-772.17,0.00019452,3]
[347242970,1735615844276,-587.32,0.00019452,3]
[347242971,1735615844286,-561.11,0.00019452,3]
[347242972,1735615844295,-685.61,0.00019452,3]
[347242973,1735615844304,-500.0,0.00019452,3]
[347242974,1735615844313,-500.0,0.00019452,3]
[347242975,1735615844323,-500.0,0.00019452,3]
[347242976,1735615844332,-2234.8,0.00019452,3]
[347242977,1735615844341,-851.02,0.00019452,3]
[347242978,1735615844350,-1223.37,0.00019452,3]
[347242979,1735615844359,-19520.36,0.00019452,3]
[347242980,1735615844368,-500.0,0.00019452,3]
[347242981,1735615844377,-500.0,0.00019452,3]
[347242982,1735615844386,-500.0,0.00019452,3]
[347242983,1735615844395,-500.0,0.00019452,3]
[347242984,1735615844404,-846.55,0.00019452,3]
[347242985,1735615844414,-631.61,0.00019452,3]
[347242986,1735615844423,-656.48,0.00019452,3]
[347242987,1735615844432,-578.9,0.00019452,3]
[347242988,1735615844442,-479.37147116,0.00019452,3]
[347242989,1735615844451,-2151.34,0.00019452,3]
[347242990,1735615844460,-500.0,0.00019452,3]
[347242991,1735615844469,-500.0,0.00019452,3]
[347242992,1735615844479,-500.0,0.00019452,3]
[347242993,1735615844488,-868.48,0.00019452,3]
[347242994,1735615844497,-920.77,0.00019452,3]
[347242995,1735615844506,-6355.53,0.00019452,3]
[347242996,1735615844515,-1989.0,0.00019452,3]
[347242997,1735615844524,-500.0,0.00019452,3]
[347242998,1735615844533,-522.65,0.00019452,3]
[347242999,1735615844542,-500.0,0.00019452,3]
[347243000,1735615844551,-500.0,0.00019452,3]
[347243001,1735615844560,-720.08,0.00019452,3]
[347243002,1735615844569,-160.0,0.00019521,3]
[347243003,1735615844579,-500.0,0.00019726,3]
[347243004,1735615844588,-500.0,0.00019726,3]
[347243005,1735615844597,-500.0,0.00019726,3]
[347243006,1735615844606,-772.17,0.00019726,3]
[347243007,1735615844615,-587.32,0.00019726,3]
[347243008,1735615844624,-561.11,0.00019726,3]
[347243009,1735615844633,-685.61,0.00019726,3]
[347243010,1735615844642,-500.0,0.00019726,3]
[347243011,1735615844651,-500.0,0.00019726,3]
[347243012,1735615844660,-500.0,0.00019726,3]
[347243013,1735615844669,-2234.8,0.00019726,3]
[347243014,1735615844678,-851.02,0.00019726,3]
[347243015,1735615844687,-1223.37,0.00019726,3]
[347243016,1735615844696,-19520.36,0.00019726,3]
[347243017,1735615844708,-500.0,0.00019726,3]
[347243018,1735615844718,-500.0,0.00019726,3]
[347243019,1735615844727,-500.0,0.00019726,3]
[347243020,1735615844737,-500.0,0.00019726,3]
[347243021,1735615844747,-846.55,0.00019726,3]
[347243022,1735615844756,-631.61,0.00019726,3]
[347243023,1735615844765,-656.48,0.00019726,3]
[347243024,1735615844774,-578.9,0.00019726,3]
[347243025,1735615844785,-2151.34,0.00019726,3]
[347243026,1735615844796,-529.36270336,0.00019726,3]
[347243027,1735615844807,-500.0,0.00019726,3]
[347243028,1735615844821,-500.0,0.00019726,3]
[347243029,1735615844833,-868.48,0.00019726,3]
[347243030,1735615844845,-920.77,0.00019726,3]
[347243031,1735615844854,-6355.53,0.00019726,3]
[347243032,1735615844863,-1989.0,0.00019726,3]
[347243033,1735615844872,-500.0,0.00019726,3]
[347243034,1735615844881,-522.65,0.00019726,3]
[347243035,1735615844890,-500.0,0.00019726,3]
[347243036,1735615844899,-500.0,0.00019726,3]
[347243037,1735615844908,-720.08,0.00019726,3]
[347243038,1735615844917,-160.0,0.00019774,4]
[347243039,1735615844926,-1251.58,0.00019964,3]
[347243040,1735615844935,-1270.21,0.00019964,2]
[347243041,1735615844944,-2818.07,0.00019964,3]
[347243042,1735615844953,-188.42997471,0.00019999,2]
[347243043,1735615844962,-500.0,0.00019999,2]
[347243044,1735615844971,-171.72209533,0.0002,3]
[347243045,1735615844980,-500.0,0.0002,3]
[347243046,1735615844989,-500.0,0.0002,3]
[347243047,1735615844998,-772.17,0.0002,3]
[347243048,1735615845008,-587.32,0.0002,3]
[347243049,1735615845017,-561.11,0.0002,3]
[347243050,1735615845026,-685.61,0.0002,3]
[347243051,1735615845035,-500.0,0.0002,3]
[347243052,1735615845044,-350.58494153,0.0002,3]
[347243053,1735615845053,-500.0,0.0002,3]
[347243054,1735615845063,-2234.8,0.0002,3]
[347243055,1735615845072,-851.02,0.0002,3]
[347243056,1735615845080,-1223.37,0.0002,3]
[347243057,1735615845089,-19520.36,0.0002,3]
[347243058,1735615845098,-500.0,0.0002,3]
[347243059,1735615845108,-500.0,0.0002,3]
[347243060,1735615845117,-500.0,0.0002,3]
[347243061,1735615845126,-500.0,0.0002,3]
[347243062,1735615845135,-846.55,0.0002,3]
[347243063,1735615845144,-631.61,0.0002,3]
[347243064,1735615845153,-656.48,0.0002,3]
[347243065,1735615845162,-578.9,0.0002,3]
[347243066,1735615845170,-2151.34,0.0002,3]
[347243067,1735615845179,-151.0,0.0002,2]
[347243068,1735615845188,-500.0,0.0002,3]
[347243069,1735615845197,-500.0,0.0002,3]
[347243070,1735615845206,-868.48,0.0002,3]
[347243071,1735615845215,-920.77,0.0002,3]
[347243072,1735615845224,-6355.53,0.0002,3]
[347243073,1735615845233,-1989.0,0.0002,3]
[347243074,1735615845242,-500.0,0.0002,3]
[347243075,1735615845251,-522.65,0.0002,3]
[347243076,1735615845260,-500.0,0.0002,3]
[347243077,1735615845269,-500.0,0.0002,3]
[347243078,1735615845278,-720.08,0.0002,3]
[347243079,1735615845287,-160.0,0.00020027,5]
[347243080,1735615845296,-547.051,0.0002003,2]
[347243081,1735615845305,-553.88,0.00020237,3]
[347243082,1735615845314,-1024.64,0.00020237,3]
[347243083,1735615845322,-500.0,0.00020237,3]
[347243084,1735615845331,-1251.58,0.00020238,3]
[347243085,1735615845341,-1270.21,0.00020238,2]
[347243086,1735615845350,-2818.07,0.00020238,3]
[347243087,1735615845359,-571.46860631,0.00020273,3]
[347243088,1735615845367,-500.0,0.00020273,3]
[347243089,1735615845377,-772.17,0.00020273,3]
[347243090,1735615845385,-587.32,0.00020273,3]
[347243091,1735615845394,-561.11,0.00020273,3]
[347243092,1735615845403,-685.61,0.00020273,3]
[347243093,1735615845413,-500.0,0.00020273,3]
[347243094,1735615845422,-500.0,0.00020273,3]
[347243095,1735615845431,-2234.8,0.00020273,3]
[347243096,1735615845440,-851.02,0.00020273,3]
[347243097,1735615845449,-1223.37,0.00020273,3]
[347243098,1735615845458,-19520.36,0.00020273,3]
[347243099,1735615845468,-500.0,0.00020273,3]
[347243100,1735615845476,-500.0,0.00020273,3]
[347243101,1735615845486,-500.0,0.00020273,3]
[347243102,1735615845495,-500.0,0.00020273,3]
[347243103,1735615845504,-846.55,0.00020273,3]
[347243104,1735615845513,-631.61,0.00020273,3]
[347243105,1735615845522,-656.48,0.00020273,3]
[347243106,1735615845531,-578.9,0.00020273,3]
[347243107,1735615845540,-2151.34,0.00020273,3]
[347243108,1735615845549,-500.0,0.00020273,3]
[347243109,1735615845558,-500.0,0.00020273,3]
[347243110,1735615845567,-868.48,0.00020273,3]
[347243111,1735615845576,-920.77,0.00020273,3]
[347243112,1735615845585,-6355.53,0.00020273,3]
[347243113,1735615845594,-1989.0,0.00020273,3]
[347243114,1735615845603,-500.0,0.00020273,3]
[347243115,1735615845612,-522.65,0.00020273,3]
[347243116,1735615845621,-500.0,0.00020273,3]
[347243117,1735615845630,-500.0,0.00020273,3]
[347243118,1735615845639,-720.08,0.00020273,3]
[347243119,1735615845648,-160.0,0.0002028,6]
[347243120,1735615845657,-163.249918,0.00020447,2]
[347243121,1735615845666,-150.0,0.000205,2]
[347243122,1735615845676,-553.88,0.00020511,3]
[347243123,1735615845685,-500.0,0.00020511,3]
[347243124,1735615845694,-1251.58,0.00020512,3]
[347243125,1735615845705,-1270.21,0.00020512,2]
[347243126,1735615845716,-2818.07,0.00020512,3]
[347243127,1735615845725,-165.448731,0.00020521,2]
[347243128,1735615845734,-160.0,0.00020533,7]
[347243129,1735615845744,-302.53492967,0.00020533,5]
[347243130,1735615845753,-500.0,0.00020547,3]
[347243131,1735615845763,-772.17,0.00020547,3]
[347243132,1735615845772,-587.32,0.00020547,3]
[347243133,1735615845783,-561.11,0.00020547,3]
[347243134,1735615845792,-685.61,0.00020547,3]
[347243135,1735615845801,-500.0,0.00020547,3]
[347243136,1735615845811,-500.0,0.00020547,3]
[347243137,1735615845820,-2234.8,0.00020547,3]
[347243138,1735615845830,-851.02,0.00020547,3]
[347243139,1735615845839,-1223.37,0.00020547,3]
[347243140,1735615845848,-19520.36,0.00020547,3]
[347243141,1735615845858,-500.0,0.00020547,3]
[347243142,1735615845867,-500.0,0.00020547,3]
[347243143,1735615845877,-500.0,0.00020547,3]
[347243144,1735615845886,-500.0,0.00020547,3]
[347243145,1735615845896,-846.55,0.00020547,3]
[347243146,1735615845905,-631.61,0.00020547,3]
[347243147,1735615845915,-656.48,0.00020547,3]
[347243148,1735615845924,-578.9,0.00020547,3]
[347243149,1735615845933,-2151.34,0.00020547,3]
[347243150,1735615845942,-500.0,0.00020547,3]
[347243151,1735615845951,-500.0,0.00020547,3]
[347243152,1735615845960,-868.48,0.00020547,3]
[347243153,1735615845970,-920.77,0.00020547,3]
[347243154,1735615845980,-6355.53,0.00020547,3]
[347243155,1735615845990,-1989.0,0.00020547,3]
[347243156,1735615845999,-500.0,0.00020547,3]
[347243157,1735615846008,-522.65,0.00020547,3]
[347243158,1735615846018,-500.0,0.00020547,3]
[347243159,1735615846027,-500.0,0.00020547,3]
[347243160,1735615846041,-720.08,0.00020547,3]
[347243161,1735615846050,-553.88,0.00020785,3]
[347243162,1735615846059,-500.0,0.00020785,3]
[347243163,1735615846068,-1251.58,0.00020786,3]
[347243164,1735615846079,-1270.21,0.00020786,2]
[347243165,1735615846088,-2818.07,0.00020786,3]
[347243166,1735615846098,-158.198186,0.00020821,2]
[347243167,1735615846110,-500.0,0.00020821,3]
[347243168,1735615846120,-772.17,0.00020821,3]
[347243169,1735615846129,-587.32,0.00020821,3]
[347243170,1735615846138,-561.11,0.00020821,3]
[347243171,1735615846148,-685.61,0.00020821,3]
[347243172,1735615846157,-500.0,0.00020821,3]
[347243173,1735615846166,-500.0,0.00020821,3]
[347243174,1735615846175,-2234.8,0.00020821,3]
[347243175,1735615846184,-851.02,0.00020821,3]
[347243176,1735615846193,-1223.37,0.00020821,3]
[347243177,1735615846203,-19520.36,0.00020821,3]
[347243178,1735615846212,-500.0,0.00020821,3]
[347243179,1735615846221,-500.0,0.00020821,3]
[347243180,1735615846231,-500.0,0.00020821,3]
[347243181,1735615846311,-623.04599707,0.00020821,3]
[347243182,1735615846320,-631.61,0.00020821,3]
[347243183,1735615846329,-846.55,0.00020821,3]
[347243184,1735615846339,-656.48,0.00020821,3]
[347243185,1735615846348,-578.9,0.00020821,3]
[347243186,1735615846358,-2151.34,0.00020821,3]
[347243187,1735615846367,-500.0,0.00020821,3]
[347243188,1735615846376,-500.0,0.00020821,3]
[347243189,1735615846386,-868.48,0.00020821,3]
[347243190,1735615846395,-920.77,0.00020821,3]
[347243191,1735615846404,-6355.53,0.00020821,3]
[347243192,1735615846416,-1989.0,0.00020821,3]
[347243193,1735615846425,-500.0,0.00020821,3]
[347243194,1735615846435,-522.65,0.00020821,3]
[347243195,1735615846445,-500.0,0.00020821,3]
[347243196,1735615846454,-500.0,0.00020821,3]
[347243197,1735615846463,-720.08,0.00020821,3]
[347243198,1735615846472,-171.3182413,0.0002087,2]
[347243199,1735615846482,-10028.50814142,0.00021,2]
[347243200,1735615846492,-1200.0,0.00021013,2]
[347243201,1735615846501,-165.448731,0.00021032,2]
[347243202,1735615846511,-553.88,0.00021059,3]
[347243203,1735615846520,-500.0,0.00021059,3]
[347243204,1735615846529,-1251.58,0.0002106,3]
[347243205,1735615846538,-1270.21,0.0002106,2]
[347243206,1735615846549,-2818.07,0.0002106,3]
[347243207,1735615846559,-1024.64,0.00021064,3]
[347243208,1735615846568,-1024.64,0.00021064,3]
[347243209,1735615846576,-1024.64,0.00021064,3]
[347243210,1735615846586,-1024.64,0.00021064,3]
[347243211,1735615846595,-1024.64,0.00021064,3]
[347243212,1735615846604,-1024.64,0.00021064,3]
[347243213,1735615846613,-1024.64,0.00021064,3]
[347243214,1735615846623,-1024.64,0.00021064,3]
[347243215,1735615846633,-1024.64,0.00021064,3]
[347243216,1735615846649,-1024.64,0.00021064,3]
[347243217,1735615846659,-1024.64,0.00021064,3]
[347243218,1735615846668,-1024.64,0.00021064,3]
[347243219,1735615846677,-1024.64,0.00021064,3]
[347243220,1735615846686,-1024.64,0.00021064,3]
[347243221,1735615846696,-1024.64,0.00021064,3]
[347243222,1735615846709,-1024.64,0.00021064,3]
[347243223,1735615846718,-1024.64,0.00021064,3]
[347243224,1735615846727,-1024.64,0.00021064,3]
[347243225,1735615846737,-1024.64,0.00021064,3]
[347243226,1735615846748,-1024.64,0.00021064,3]
[347243227,1735615846757,-1024.64,0.00021064,3]
[347243228,1735615846767,-1024.64,0.00021064,3]
[347243230,1735615846779,-1024.66695313,0.00021064,3]
[347243232,1735615846789,-522.82026053,0.00021077,2]
[347243234,1735615846798,-2748.31831161,0.00021078,2]
[347243235,1735615846808,-23468.4287858,0.00021078,2]
[347243236,1735615846817,-376973.18941854,0.00021079,10]
[347243237,1735615847090,-44.8172466,0.00021079,10]
[347243244,1735616945202,-163.261187,0.00013695,2]
[347243245,1735616945228,-163.261187,0.00013973,2]
[347243246,1735616945252,-833.14967102,0.00018289,2]
[347243247,1735616985760,-181.7456895,0.0002,5]
[347243304,1735617032436,-26.88106348,0.00018289,2]
[347243305,1735617032446,-182.922,0.00019177,2]
[347243306,1735617032455,-300.0,0.00019177,2]
[347243307,1735617032464,-501.53367465,0.00019178,2]
[347243309,1735617032476,-501.1392858,0.00019178,2]
[347243311,1735617032485,-502.11166888,0.00019178,2]
[347243313,1735617032494,-271.18546892,0.00019178,2]
[347243315,1735617032503,-501.23409041,0.00019178,2]
[347243317,1735617032512,-500.0,0.00019178,2]
[347243319,1735617032522,-500.0,0.00019178,2]
[347243321,1735617032531,-500.0,0.00019178,2]
[347243323,1735617032540,-500.0,0.00019178,2]
[347243325,1735617032549,-502.66614113,0.00019178,2]
[347243327,1735617032558,-500.0,0.00019178,2]
[347243329,1735617032567,-500.0,0.00019178,2]
[347243331,1735617032576,-500.0,0.00019178,2]
[347243333,1735617032585,-500.0,0.00019178,2]
[347243335,1735617032595,-500.0,0.00019178,2]
[347243336,1735617032604,-500.0,0.00019178,2]
[347243338,1735617032612,-504.28890848,0.00019178,2]
[347243340,1735617032622,-546.95,0.00019178,2]
[347243341,1735617032631,-500.0,0.00019178,2]
[347243343,1735617032640,-503.89035123,0.00019178,2]
[347243345,1735617032650,-504.20278743,0.00019178,2]
[347243346,1735617032659,-500.0,0.00019178,2]
[347243347,1735617032667,-1582.99,0.00019178,2]
[347243348,1735617032677,-500.0,0.00019178,2]
[347243349,1735617032686,-500.0,0.00019178,2]
[347243350,1735617032696,-504.25044429,0.00019178,2]
[347243351,1735617032705,-505.80654716,0.00019178,2]
[347243352,1735617032715,-500.0,0.00019178,2]
[347243353,1735617032726,-503.34339634,0.00019178,2]
[347243354,1735617032735,-500.0,0.00019178,2]
[347243355,1735617032744,-500.0,0.00019178,2]
[347243356,1735617032753,-500.0,0.00019178,2]
[347243357,1735617032761,-500.0,0.00019178,2]
[347243358,1735617032771,-500.0,0.00019178,2]
[347243359,1735617032780,-500.0,0.00019178,2]
[347243360,1735617032790,-500.0,0.00019178,2]
[347243361,1735617032799,-504.49492047,0.00019178,2]
[347243362,1735617032808,-568.521893,0.00019178,2]
[347243363,1735617032818,-595.09248275,0.00019178,2]
[347243364,1735617032827,-502.09877041,0.00019178,2]
[347243365,1735617032836,-501.97305965,0.00019178,2]
[347243366,1735617032846,-501.45441181,0.00019178,2]
[347243367,1735617032855,-503.39603721,0.00019178,2]
[347243368,1735617032865,-505.63418414,0.00019178,2]
[347243369,1735617032874,-502.03364507,0.00019178,2]
[347243370,1735617032883,-502.57867674,0.00019178,2]
[347243371,1735617032892,-501.26516216,0.00019178,2]
[347243372,1735617032902,-503.59325348,0.00019178,2]
[347243373,1735617032911,-506.52353864,0.00019178,2]
[347243374,1735617032920,-13847.75,0.00019178,2]
[347243375,1735617032930,-642.38,0.00019178,2]
[347243376,1735617032940,-602.8,0.00019178,2]
[347243377,1735617032949,-500.0,0.00019178,2]
[347243378,1735617032959,-503.86865073,0.00019178,2]
[347243379,1735617032969,-500.0,0.00019178,2]
[347243380,1735617032979,-502.34008791,0.00019178,2]
[347243381,1735617032988,-505.22046406,0.00019178,2]
[347243382,1735617032998,-500.0,0.00019178,2]
[347243383,1735617033008,-500.0,0.00019178,2]
[347243384,1735617033018,-501.83609182,0.00019178,2]
[347243385,1735617033028,-500.0,0.00019178,2]
[347243386,1735617033038,-505.22550322,0.00019178,2]
[347243387,1735617033160,-500.0,0.00019178,2]
[347243388,1735617033171,-500.0,0.00019178,2]
[347243389,1735617033180,-504.46236773,0.00019178,2]
[347243390,1735617033190,-301.74270659,0.00019178,2]
[347243391,1735617033200,-500.0,0.00019178,2]
[347243392,1735617033209,-506.05888521,0.00019178,2]
[347243393,1735617033220,-500.0,0.00019178,2]
[347243394,1735617033232,-500.0,0.00019178,2]
[347243395,1735617033241,-77.78986127,0.00019178,2]
[347243396,1735617033255,-426.27300525,0.00019178,2]
[347243397,1735617033266,-502.74717759,0.00019178,2]
[347243398,1735617033275,-506.06735937,0.00019178,2]
[347243399,1735617033284,-6.14321018,0.00019178,2]
[347243413,1735617038208,-493.85678982,0.00019178,2]
[347243414,1735617038219,-277.13347875,0.00019178,2]
[347243415,1735617038231,-1544.7,0.00019178,2]
[347243416,1735617038241,-500.59422007,0.00019178,2]
[347243417,1735617038250,-503.06423119,0.00019178,2]
[347243418,1735617038259,-500.0,0.00019178,2]
[347243419,1735617038269,-500.0,0.00019178,2]
[347243420,1735617038278,-500.0,0.00019178,2]
[347243421,1735617038287,-448.09990552,0.00019178,2]
[347243422,1735617038296,-504.42641024,0.00019178,2]
[347243423,1735617038306,-500.0,0.00019178,2]
[347243424,1735617038315,-500.0,0.00019178,2]
[347243425,1735617038324,-503.73209837,0.00019178,2]
[347243426,1735617038334,-503.08956328,0.00019178,2]
[347243427,1735617038343,-504.20325122,0.00019178,2]
[347243428,1735617038351,-523.16115206,0.00019178,2]
[347243429,1735617038360,-501.86890275,0.00019178,2]
[347243430,1735617038369,-596.44333259,0.00019178,2]
[347243431,1735617038378,-500.0,0.00019178,2]
[347243432,1735617038388,-502.410943,0.00019178,2]
[347243433,1735617038396,-500.33107617,0.00019178,2]
[347243434,1735617038406,-501.91773674,0.00019178,2]
[347243435,1735617038415,-4501.84,0.00019178,2]
[347243436,1735617038424,-500.51991835,0.00019178,2]
[347243437,1735617038433,-501.24527207,0.00019178,2]
[347243438,1735617038442,-500.0,0.00019178,2]
[347243439,1735617038451,-502.41957187,0.00019178,2]
[347243440,1735617038460,-500.0,0.00019178,2]
[347243441,1735617038470,-502.46531293,0.00019178,2]
[347243442,1735617038479,-500.0,0.00019178,2]
[347243443,1735617038488,-500.0,0.00019178,2]
[347243444,1735617038498,-504.92313088,0.00019178,2]
[347243445,1735617038507,-500.0,0.00019178,2]
[347243446,1735617038516,-437.20836857,0.00019178,2]
[347243447,1735617038525,-503.45342686,0.00019178,2]
[347243448,1735617038535,-348.4680321,0.00019178,2]
[347243449,1735617038544,-500.0,0.00019178,2]
[347243450,1735617038553,-500.0,0.00019178,2]
[347243451,1735617038562,-502.89333713,0.00019178,2]
[347243452,1735617038571,-500.0,0.00019178,2]
[347243453,1735617038581,-673.05,0.00019178,2]
[347243454,1735617038590,-503.33465018,0.00019178,2]
[347243455,1735617038599,-502.28281608,0.00019178,2]
[347243456,1735617038608,-1408.88,0.00019178,2]
[347243457,1735617038617,-636.01,0.00019178,2]
[347243458,1735617038626,-500.0,0.00019178,2]
[347243459,1735617038635,-500.0,0.00019178,2]
[347243460,1735617038643,-500.0,0.00019178,2]
[347243461,1735617038652,-500.0,0.00019178,2]
[347243462,1735617038661,-500.0,0.00019178,2]
[347243463,1735617038670,-505.00149172,0.00019178,2]
[347243464,1735617038679,-500.0,0.00019178,2]
[347243465,1735617038689,-990.83,0.00019178,2]
[347243466,1735617038697,-503.59626508,0.00019178,2]
[347243467,1735617038707,-411.56132584,0.00019178,2]
[347243468,1735617038716,-512.0266464,0.00019178,2]
[347243469,1735617038725,-401.35004641,0.00019178,2]
[347243470,1735617038735,-530.89,0.00019178,2]
[347243471,1735617038744,-500.0,0.00019178,2]
[347243472,1735617038753,-500.0,0.00019178,2]
[347243473,1735617038762,-887.39,0.00019178,2]
[347243474,1735617038771,-500.0,0.00019178,2]
[347243475,1735617038779,-500.0,0.00019178,2]
[347243476,1735617038789,-500.0,0.00019451,3]
[347243477,1735617038798,-500.0,0.00019452,3]
[347243478,1735617038807,-546.95,0.00019452,3]
[347243479,1735617038816,-500.0,0.00019452,3]
[347243480,1735617038825,-500.0,0.00019452,3]
[347243481,1735617038834,-1582.99,0.00019452,3]
[347243482,1735617038843,-500.0,0.00019452,3]
[347243483,1735617038853,-500.0,0.00019452,3]
[347243484,1735617038862,-500.0,0.00019452,3]
[347243485,1735617038871,-500.0,0.00019452,3]
[347243486,1735617038880,-13847.75,0.00019452,3]
[347243487,1735617038890,-642.38,0.00019452,3]
[347243488,1735617038900,-602.8,0.00019452,3]
[347243489,1735617038909,-174.49206987,0.00019452,3]
[347243490,1735617038918,-500.0,0.00019452,3]
[347243491,1735617038927,-500.0,0.00019452,3]
[347243492,1735617038936,-500.0,0.00019452,3]
[347243493,1735617038945,-500.0,0.00019452,3]
[347243494,1735617038954,-500.0,0.00019452,3]
[347243495,1735617038963,-1544.7,0.00019452,3]
[347243496,1735617038973,-500.0,0.00019452,3]
[347243497,1735617038982,-500.0,0.00019452,3]
[347243498,1735617038991,-500.0,0.00019452,3]
[347243499,1735617039001,-4501.84,0.00019452,3]
[347243500,1735617039010,-673.05,0.00019452,3]
[347243501,1735617039020,-1408.88,0.00019452,3]
[347243502,1735617039029,-636.01,0.00019452,3]
[347243503,1735617039039,-500.0,0.00019452,3]
[347243504,1735617039048,-500.0,0.00019452,3]
[347243505,1735617039057,-500.0,0.00019452,3]
[347243506,1735617039066,-990.83,0.00019452,3]
[347243507,1735617039075,-530.89,0.00019452,3]
[347243508,1735617039084,-887.39,0.00019452,3]
[347243509,1735617039093,-500.0,0.00019725,3]
[347243510,1735617039103,-500.0,0.00019726,3]
[347243511,1735617039112,-546.95,0.00019726,3]
[347243512,1735617039122,-500.0,0.00019726,3]
[347243513,1735617039134,-500.0,0.00019726,3]
[347243514,1735617039143,-1582.99,0.00019726,3]
[347243515,1735617039152,-500.0,0.00019726,3]
[347243516,1735617039162,-500.0,0.00019726,3]
[347243517,1735617039171,-500.0,0.00019726,3]
[347243518,1735617039180,-500.0,0.00019726,3]
[347243519,1735617039189,-13847.75,0.00019726,3]
[347243520,1735617039199,-642.38,0.00019726,3]
[347243521,1735617039208,-602.8,0.00019726,3]
[347243522,1735617039218,-500.0,0.00019726,3]
[347243523,1735617039232,-500.0,0.00019726,3]
[347243524,1735617039241,-500.0,0.00019726,3]